bitfinex/quotes_BTCUSD_20250410
["timestamp","ask_amount","ask_price","bid_price","bid_amount"]
[1744251025860,0.002,82429.0,82414.0,0.65308309]
[1744251028475,0.012132,82423.0,82414.0,0.55628309]
[1744251028676,0.24265,82423.0,82414.0,0.55628309]
[1744251028884,0.014131,82429.0,82414.0,0.55628309]
[1744251029087,0.242647,82425.0,82414.0,0.55628309]
[1744251029284,0.242649,82424.0,82414.0,0.55628309]
[1744251029716,0.254782,82423.0,82414.0,0.55628309]
[1744251029914,0.0123017,82415.0,82414.0,0.30147309]
[1744251030124,0.0123017,82415.0,82414.0,0.14312]
[1744251030125,0.2549757,82415.0,82414.0,0.14312]
[1744251030317,0.2428427,82415.0,82414.0,0.14312]
[1744251030553,0.0001687,82415.0,82414.0,0.14312]
[1744251030848,0.0001687,82415.0,82414.0,0.385797]
[1744251031052,0.0001687,82415.0,82414.0,0.14312]
[1744251031307,0.0001687,82415.0,82414.0,0.385797]
[1744251032329,0.0001687,82415.0,82414.0,0.39793]
[1744251032937,0.0001687,82415.0,82414.0,0.51848382]
[1744251034431,0.0001687,82415.0,82414.0,0.56348382]
[1744251034589,0.0001687,82415.0,82414.0,0.60110128]
[1744251035518,0.3401687,82432.0,82429.0,0.242631]
[1744251035722,0.3401687,82432.0,82428.0,0.242635]
[1744251035723,0.00042671,82429.0,82428.0,0.242635]
[1744251035920,0.00042671,82429.0,82428.0,0.40080048]
[1744251036942,0.59519071,82429.0,82428.0,0.03761166]
[1744251037243,0.012133,82419.0,82414.0,0.385796]
[1744251037443,0.242659,82420.0,82415.0,0.04975526]
[1744251037678,0.242656,82421.0,82416.0,0.04975526]
[1744251037882,0.0493686,82431.0,82422.0,0.012132]
[1744251037883,0.01255771,82429.0,82422.0,0.012132]
[1744251038029,0.34,82427.0,82424.0,0.254777]
[1744251038236,0.34,82427.0,82425.0,0.03762226]
[1744251038434,0.242641,82426.0,82423.0,0.012132]
[1744251038596,0.34,82425.0,82424.0,0.03761066]
[1744251038796,0.34,82425.0,82424.0,0.242647]
[1744251039016,0.34,82425.0,82424.0,0.254779]
[1744251039362,0.34,82425.0,82424.0,0.03760426]
[1744251039736,0.34,82427.0,82426.0,0.24264]
[1744251040141,0.34,82427.0,82425.0,0.242643]
[1744251040307,0.34,82427.0,82426.0,0.242641]
[1744251040505,0.34,82427.0,82425.0,0.242643]
[1744251040506,0.582639,82427.0,82425.0,0.242643]
[1744251040963,0.34,82428.0,82426.0,0.242641]
[1744251041184,0.34,82428.0,82427.0,0.254769]
[1744251041358,0.34,82428.0,82427.0,0.29235401]
[1744251041912,0.00042671,82429.0,82428.0,0.254766]
[1744251042088,0.00042671,82429.0,82428.0,0.37774593]
[1744251042247,0.00042671,82429.0,82428.0,0.41290483]
[1744251044195,0.24305971,82429.0,82428.0,0.03758501]
[1744251044397,0.00042671,82429.0,82428.0,0.254766]
[1744251044604,0.00042671,82429.0,82428.0,0.28022001]
[1744251045569,0.00042671,82429.0,82428.0,0.03758501]
[1744251047861,0.00042671,82429.0,82428.0,0.40077383]
[1744251048044,0.00042671,82429.0,82428.0,0.41290483]
[1744251048248,0.00042671,82429.0,82428.0,0.40077383]
[1744251048446,0.00042671,82429.0,82428.0,0.15813883]
[1744251049090,0.00042671,82429.0,82428.0,0.40077383]
[1744251049389,0.00042671,82429.0,82428.0,0.54377383]
[1744251049794,0.00042671,82429.0,82428.0,0.55590483]
[1744251050019,0.24305971,82429.0,82428.0,0.30113883]
[1744251050187,0.00042671,82429.0,82428.0,0.30113883]
[1744251050811,0.00042671,82429.0,82428.0,0.54377383]
[1744251051011,0.00042671,82429.0,82428.0,0.55590483]
[1744251055765,0.34,82440.0,82439.0,0.242603]
[1744251055969,0.34012796,82440.0,82439.0,0.03758501]
[1744251056329,0.58272796,82440.0,82439.0,0.03758501]
[1744251056871,0.34012796,82440.0,82439.0,0.03758501]
[1744251057066,0.34012796,82440.0,82439.0,0.28018801]
[1744251057679,0.34012796,82440.0,82439.0,0.03758501]
[1744251057909,0.00012796,82440.0,82439.0,0.03758501]
[1744251058113,0.34012796,82440.0,82439.0,0.03758501]
[1744251058663,0.34012796,82440.0,82439.0,0.28018801]
[1744251058863,0.00012796,82440.0,82439.0,0.28018801]
[1744251059267,0.00012796,82440.0,82439.0,0.03758501]
[1744251059605,0.00012796,82440.0,82439.0,0.28018801]
[1744251061650,0.00012796,82440.0,82439.0,0.03758501]
[1744251061852,0.25485796,82440.0,82439.0,0.03758501]
[1744251062078,0.00012796,82440.0,82439.0,0.03758501]
[1744251062258,0.58272796,82440.0,82439.0,0.03758501]
[1744251062552,0.34012796,82440.0,82439.0,0.03758501]
[1744251062848,0.58272796,82440.0,82439.0,0.03758501]
[1744251063411,0.59485796,82440.0,82439.0,0.03758501]
[1744251063840,0.60337352,82440.0,82439.0,0.03758501]
[1744251064464,0.59485796,82440.0,82439.0,0.03758501]
[1744251070654,0.00864842,82440.0,82439.0,0.28018801]
[1744251070891,0.00864842,82440.0,82439.0,0.29231801]
[1744251071312,0.00012796,82440.0,82439.0,0.29231801]
[1744251071820,0.3098083,82446.0,82444.0,0.242587]
[1744251072024,0.0001688,82448.0,82447.0,0.254709]
[1744251072320,0.0001688,82448.0,82447.0,0.29229401]
[1744251073320,0.0001688,82448.0,82447.0,0.41284783]
[1744251074193,0.0001688,82448.0,82447.0,0.03758501]
[1744251074419,0.2548738,82448.0,82447.0,0.03758501]
[1744251074616,0.26166876,82448.0,82447.0,0.03758501]
[1744251074822,0.60166876,82448.0,82447.0,0.03758501]
[1744251074993,0.61620961,82448.0,82447.0,0.03758501]
[1744251075217,0.65501465,82448.0,82447.0,0.03758501]
[1744251075596,0.254756,82432.0,82430.0,0.14292]
[1744251075786,0.254756,82432.0,82431.0,0.03779452]
[1744251079618,0.242625,82432.0,82431.0,0.03779452]
[1744251081784,0.15165374,82432.0,82431.0,0.03779452]
[1744251082785,0.242594,82442.0,82431.0,0.04992552]
[1744251082989,0.24262,82434.0,82432.0,0.03779452]
[1744251083185,0.254743,82436.0,82433.0,0.03779452]
[1744251083385,0.242613,82436.0,82434.0,0.03779452]
[1744251083548,0.242613,82436.0,82435.0,0.03779452]
[1744251085544,0.25474,82437.0,82435.0,0.06047094]
[1744251085747,0.25474,82437.0,82436.0,0.03779452]
[1744251085966,0.25474,82437.0,82436.0,0.06047094]
[1744251089227,0.34,82450.0,82436.0,0.06047094]
[1744251089228,0.012129,82444.0,82440.0,0.242599]
[1744251089347,0.242594,82442.0,82441.0,0.06047094]
[1744251090355,0.34,82443.0,82441.0,0.06047094]
[1744251090558,0.34,82443.0,82442.0,0.03779452]
[1744251091004,0.242589,82444.0,82442.0,0.06047094]
[1744251091208,0.242589,82444.0,82443.0,0.03779452]
[1744251091433,0.242589,82444.0,82443.0,0.06047094]
[1744251091765,0.0001688,82448.0,82447.0,0.24258]
[1744251091977,0.0001688,82448.0,82447.0,0.03779452]
[1744251092183,0.5827458,82448.0,82447.0,0.03779452]
[1744251092535,0.3401688,82448.0,82447.0,0.03779452]
[1744251092720,0.5827458,82448.0,82447.0,0.03779452]
[1744251093260,0.5948738,82448.0,82447.0,0.03779452]
[1744251093438,0.5948738,82448.0,82447.0,0.06047094]
[1744251096166,0.5827458,82448.0,82447.0,0.06047094]
[1744251096363,0.5948738,82448.0,82447.0,0.06047094]
[1744251100274,0.60941465,82448.0,82447.0,0.06047094]
[1744251101599,0.5948738,82448.0,82447.0,0.06047094]
[1744251103676,0.0001688,82448.0,82447.0,0.06047094]
[1744251103878,0.0001688,82448.0,82447.0,0.31517994]
[1744251104228,0.0124477,82451.0,82448.0,0.242571]
[1744251104514,0.0124477,82451.0,82450.0,0.254699]
[1744251104811,0.0124477,82451.0,82450.0,0.29249352]
[1744251105011,0.0124477,82451.0,82450.0,0.31516994]
[1744251106243,0.0124477,82451.0,82450.0,0.30304194]
[1744251106839,0.2671437,82451.0,82450.0,0.06047094]
[1744251107263,0.27240843,82451.0,82450.0,0.06047094]
[1744251108067,0.28694928,82451.0,82450.0,0.06047094]
[1744251113283,0.01771243,82451.0,82450.0,0.06047094]
[1744251113432,0.01771243,82451.0,82450.0,0.31516994]
[1744251113848,0.01771243,82451.0,82450.0,0.30304194]
[1744251116385,0.01771243,82451.0,82450.0,0.06047094]
[1744251116599,0.26028043,82451.0,82450.0,0.06047094]
[1744251117218,0.01771243,82451.0,82450.0,0.06047094]
[1744251118432,0.26028043,82451.0,82450.0,0.06047094]
[1744251121173,0.01771243,82451.0,82450.0,0.06047094]
[1744251121331,0.26028043,82451.0,82450.0,0.06047094]
[1744251123115,0.01771243,82451.0,82450.0,0.06047094]
[1744251124897,0.27240843,82451.0,82450.0,0.06047094]
[1744251131561,0.27240843,82451.0,82450.0,0.03779452]
[1744251131761,0.24208969,82451.0,82450.0,0.03779452]
[1744251133176,0.25663054,82451.0,82450.0,0.03779452]
[1744251135432,0.242563,82453.0,82450.0,0.03779452]
[1744251135773,0.254689,82454.0,82451.0,0.03779452]
[1744251135979,0.242565,82452.0,82451.0,0.02269769]
[1744251136325,0.254693,82452.0,82451.0,0.06051376]
[1744251137382,0.242564,82453.0,82451.0,0.06051376]
[1744251137577,0.242565,82452.0,82449.0,0.242572]
[1744251137876,0.242568,82451.0,82450.0,0.03782402]
[1744251138208,0.242568,82451.0,82450.0,0.06051971]
[1744251138522,0.242565,82452.0,82450.0,0.06051971]
[1744251138731,0.254693,82452.0,82451.0,0.03782402]
[1744251141114,0.242563,82453.0,82451.0,0.03782402]
[1744251141514,0.242571,82450.0,82447.0,0.397467]
[1744251141747,0.242571,82450.0,82448.0,0.03783699]
[1744251141916,0.242571,82450.0,82449.0,0.03783699]
[1744251143156,0.24257,82451.0,82449.0,0.03783699]
[1744251143493,0.24257,82451.0,82450.0,0.03783699]
[1744251154406,0.254693,82452.0,82450.0,0.03783699]
[1744251154613,0.254693,82452.0,82451.0,0.03783699]
[1744251155789,0.242565,82452.0,82451.0,0.03783699]
[1744251156479,0.254687,82454.0,82451.0,0.03783699]
[1744251156739,0.254687,82454.0,82452.0,0.03783699]
[1744251156946,0.254687,82454.0,82453.0,0.03783699]
[1744251158403,0.24256,82454.0,82453.0,0.03783699]
[1744251158660,0.0016496,82461.0,82458.0,0.242547]
[1744251158892,0.2427108,82460.0,82458.0,0.03783699]
[1744251159076,0.244544,82459.0,82458.0,0.03783699]
[1744251159881,0.24458663,82459.0,82458.0,0.03783699]
[1744251161276,0.25671363,82459.0,82458.0,0.03783699]
[1744251162517,0.25659235,82459.0,82458.0,0.03783699]
[1744251164103,0.2711332,82459.0,82458.0,0.03783699]
[1744251165743,0.3439732,82459.0,82458.0,0.03783699]
[1744251171241,0.25659235,82459.0,82458.0,0.03783699]
[1744251178447,0.65659235,82459.0,82458.0,0.03783699]
[1744251181403,0.25659235,82459.0,82458.0,0.03783699]
[1744251181855,0.00192135,82459.0,82458.0,0.29251099]
[1744251182059,0.00400941,82459.0,82458.0,0.45876481]
[1744251182234,0.0001688,82460.0,82459.0,0.012127]
[1744251182389,0.0001688,82460.0,82459.0,0.17051781]
[1744251182597,0.0001688,82460.0,82459.0,0.18185669]
[1744251182964,0.0001688,82460.0,82459.0,0.32453669]
[1744251183116,0.0001688,82460.0,82459.0,0.3472146]
[1744251184815,0.0001688,82460.0,82459.0,0.3350876]
[1744251185027,0.02683665,82460.0,82459.0,0.07185378]
[1744251185178,0.03387623,82460.0,82459.0,0.07185378]
[1744251185706,0.00720838,82460.0,82459.0,0.12968078]
[1744251185851,0.0001688,82460.0,82459.0,0.2964346]
[1744251189058,0.0001688,82460.0,82459.0,0.2843076]
[1744251189661,0.0001688,82460.0,82459.0,0.3806676]
[1744251189823,0.00613876,82460.0,82459.0,0.26011378]
[1744251190557,0.01826576,82460.0,82459.0,0.21441378]
[1744251190749,0.01826576,82460.0,82459.0,0.19173587]
[1744251191396,0.01826576,82460.0,82459.0,0.04917587]
[1744251191710,0.2563146,82461.0,82459.0,0.04917587]
[1744251191956,0.2563146,82461.0,82460.0,0.03783699]
[1744251192402,0.2563146,82461.0,82460.0,0.04917587]
[1744251192912,0.2563146,82461.0,82460.0,0.09827587]
[1744251193705,0.2563146,82461.0,82460.0,0.21882969]
[1744251193706,0.0016496,82461.0,82460.0,0.21882969]
[1744251195847,0.0016496,82461.0,82460.0,0.16972969]
[1744251195848,0.2563136,82461.0,82460.0,0.16972969]
[1744251196172,0.2563136,82461.0,82460.0,0.04917587]
[1744251196705,0.2563136,82461.0,82460.0,0.03783699]
[1744251199475,0.26128772,82461.0,82460.0,0.03783699]
[1744251202739,0.27582857,82461.0,82460.0,0.03783699]
[1744251202945,0.254709,82447.0,82446.0,0.14256]
[1744251203163,0.2597381,82447.0,82446.0,0.18036667]
[1744251203377,0.16878397,82447.0,82446.0,0.18036667]
[1744251203781,0.18091297,82447.0,82446.0,0.18036667]
[1744251204634,0.18091297,82447.0,82446.0,0.03780667]
[1744251206696,0.0050291,82447.0,82446.0,0.03780667]
[1744251206858,0.254687,82454.0,82446.0,0.08560667]
[1744251207086,0.242567,82452.0,82447.0,0.03776404]
[1744251207288,0.2475668,82451.0,82448.0,0.03776404]
[1744251207546,0.242573,82450.0,82449.0,0.03776404]
[1744251207841,0.2475647,82450.0,82449.0,0.03776404]
[1744251208250,0.0049917,82450.0,82449.0,0.03776404]
[1744251208651,0.242569,82451.0,82449.0,0.03776404]
[1744251208791,0.242567,82452.0,82446.0,0.04784263]
[1744251208792,0.0049917,82450.0,82446.0,0.04784263]
[1744251208997,0.242567,82452.0,82447.0,0.03773928]
[1744251209236,0.0049978,82451.0,82448.0,0.03773928]
[1744251209450,0.0049978,82451.0,82449.0,0.04906215]
[1744251209609,0.0049978,82451.0,82450.0,0.03773928]
[1744251209610,0.2475658,82451.0,82450.0,0.03773928]
[1744251209811,0.2596938,82451.0,82450.0,0.03773928]
[1744251210631,0.242573,82450.0,82447.0,0.03773928]
[1744251210911,0.242573,82450.0,82448.0,0.03773796]
[1744251211113,0.242573,82450.0,82449.0,0.03773796]
[1744251212932,0.242573,82450.0,82449.0,0.04905883]
[1744251213661,0.254701,82450.0,82449.0,0.04905883]
[1744251215460,0.254701,82450.0,82449.0,0.09685883]
[1744251216619,0.242571,82450.0,82449.0,0.09685883]
[1744251217997,0.254692,82453.0,82449.0,0.09685883]
[1744251218204,0.242549,82458.0,82450.0,0.17041978]
[1744251218397,0.242549,82458.0,82451.0,0.28030396]
[1744251218719,0.242549,82458.0,82452.0,0.29162283]
[1744251218922,0.242551,82457.0,82453.0,0.03773796]
[1744251219071,0.242551,82457.0,82454.0,0.03773796]
[1744251219271,0.242556,82456.0,82455.0,0.03773796]
[1744251219472,0.2475325,82456.0,82455.0,0.03773796]
[1744251221047,0.0049765,82456.0,82455.0,0.03773796]
[1744251221247,0.2475295,82456.0,82455.0,0.03773796]
[1744251222284,0.0049765,82456.0,82455.0,0.03773796]
[1744251222426,0.2475295,82456.0,82455.0,0.03773796]
[1744251222633,0.242553,82456.0,82455.0,0.03773796]
[1744251222828,0.24751909,82456.0,82455.0,0.03773796]
[1744251223357,0.00496609,82456.0,82455.0,0.37629396]
[1744251223564,0.0016496,82461.0,82455.0,0.13373796]
[1744251223565,0.242544,82460.0,82455.0,0.13373796]
[1744251223878,0.242544,82460.0,82456.0,0.03773796]
[1744251224176,0.242544,82460.0,82457.0,0.03773796]
[1744251224415,0.242544,82459.0,82458.0,0.03773796]
[1744251225210,0.254671,82459.0,82458.0,0.03773796]
[1744251228321,0.242553,82457.0,82452.0,0.21120196]
[1744251228543,0.242553,82457.0,82453.0,0.03775045]
[1744251228740,0.242554,82456.0,82454.0,0.03775045]
[1744251229095,0.242553,82457.0,82455.0,0.03775045]
[1744251229348,0.24255,82457.0,82456.0,0.0484]
[1744251229546,0.0016496,82461.0,82458.0,0.242544]
[1744251229792,0.0016496,82461.0,82458.0,0.12055382]
[1744251230012,0.0016496,82461.0,82459.0,0.03775045]
[1744251230182,0.2441886,82461.0,82459.0,0.03775045]
[1744251230386,0.254677,82457.0,82456.0,0.0484]
[1744251230592,0.254677,82457.0,82456.0,0.03775382]
[1744251230741,0.24255,82457.0,82456.0,0.03775382]
[1744251231157,0.254671,82459.0,82456.0,0.03775382]
[1744251231158,0.242549,82458.0,82456.0,0.03775382]
[1744251231353,0.254671,82459.0,82457.0,0.03775382]
[1744251231618,0.242547,82460.0,82458.0,0.15830764]
[1744251231759,0.254674,82460.0,82459.0,0.03775382]
[1744251232584,0.242547,82460.0,82459.0,0.08585382]
[1744251234297,0.0016496,82461.0,82459.0,0.0971806]
[1744251234495,0.0016496,82461.0,82460.0,0.03775382]
[1744251235029,0.2441876,82461.0,82460.0,0.03775382]
[1744251236408,0.2441876,82461.0,82460.0,0.18027382]
[1744251236730,0.0016496,82461.0,82460.0,0.18027382]
[1744251237584,0.2441876,82461.0,82460.0,0.18027382]
[1744251238651,0.2563136,82461.0,82460.0,0.18027382]
[1744251239260,0.0016496,82461.0,82460.0,0.18027382]
[1744251239461,0.2441876,82461.0,82460.0,0.18027382]
[1744251243026,0.2563136,82461.0,82460.0,0.18027382]
[1744251243373,0.0016496,82461.0,82460.0,0.22987382]
[1744251244429,0.2441876,82461.0,82460.0,0.22987382]
[1744251244619,0.0016496,82461.0,82460.0,0.59296864]
[1744251245038,0.0016496,82461.0,82460.0,0.60509564]
[1744251245257,0.012125,82468.0,82462.0,0.242533]
[1744251245461,0.012125,82468.0,82463.0,0.03775382]
[1744251245659,0.242524,82466.0,82464.0,0.03775382]
[1744251245917,0.242524,82466.0,82465.0,0.03775382]
[1744251247859,0.012125,82468.0,82465.0,0.03775382]
[1744251248068,0.242522,82467.0,82466.0,0.03775382]
[1744251248266,0.254648,82467.0,82466.0,0.03775382]
[1744251249952,0.242516,82469.0,82466.0,0.28027682]
[1744251250149,0.242515,82469.0,82467.0,0.03775382]
[1744251250448,0.242515,82469.0,82468.0,0.03775382]
[1744251251485,0.25464,82469.0,82468.0,0.03775382]
[1744251251943,0.2243292,82469.0,82468.0,0.03775382]
[1744251258795,0.2243292,82469.0,82468.0,0.18019382]
[1744251260871,0.2243292,82469.0,82468.0,0.19153003]
[1744251262658,0.2243292,82469.0,82468.0,0.04909003]
[1744251264214,0.2243292,82469.0,82468.0,0.07176832]
[1744251271953,0.0201687,82471.0,82470.0,0.254637]
[1744251272068,0.0201687,82471.0,82470.0,0.04909003]
[1744251272264,0.0201687,82471.0,82470.0,0.07176832]
[1744251273057,0.2626777,82471.0,82470.0,0.07176832]
[1744251273273,0.0201687,82471.0,82470.0,0.07176832]
[1744251274496,0.2626777,82471.0,82470.0,0.07176832]
[1744251274849,0.2748027,82471.0,82470.0,0.07176832]
[1744251276001,0.2748027,82471.0,82470.0,0.06043211]
[1744251276145,0.0201687,82471.0,82470.0,0.06043211]
[1744251276346,0.2626777,82471.0,82470.0,0.06043211]
[1744251279916,0.2748027,82471.0,82470.0,0.06043211]
[1744251283604,0.2748027,82471.0,82470.0,0.07177073]
[1744251283803,0.2626777,82471.0,82470.0,0.07177073]
[1744251284185,0.2748027,82471.0,82470.0,0.07177073]
[1744251284962,0.2748027,82471.0,82470.0,0.21413073]
[1744251288702,0.0001688,82473.0,82470.0,0.62609655]
[1744251288915,0.0001688,82473.0,82472.0,0.690831]
[1744251289089,0.0001688,82473.0,82472.0,0.81138482]
[1744251289393,0.0001688,82473.0,82472.0,0.87181693]
[1744251289916,0.0001688,82473.0,82472.0,0.88315555]
[1744251290186,0.0001688,82473.0,82472.0,0.49585555]
[1744251290610,0.2547968,82473.0,82472.0,0.07177073]
[1744251290750,0.0001688,82473.0,82472.0,0.21413073]
[1744251291147,0.0122938,82473.0,82472.0,0.21413073]
[1744251291379,0.25485884,82473.0,82472.0,0.21413073]
[1744251295610,0.24273384,82473.0,82472.0,0.21413073]
[1744251295811,0.00023084,82473.0,82472.0,0.45663673]
[1744251296320,0.00023084,82473.0,82472.0,0.21413073]
[1744251296989,0.00023084,82473.0,82472.0,0.45663673]
[1744251297193,0.00023084,82473.0,82472.0,0.46876173]
[1744251297381,0.00023084,82473.0,82472.0,0.63541555]
[1744251297783,0.00023084,82473.0,82472.0,0.64390641]
[1744251298706,0.0061577,82473.0,82472.0,0.64390641]
[1744251298900,0.0061577,82473.0,82472.0,0.50154641]
[1744251299034,0.00023084,82473.0,82472.0,0.50154641]
[1744251299959,0.00023084,82473.0,82472.0,0.45544641]
[1744251300360,0.00023084,82473.0,82472.0,0.20081541]
[1744251300526,0.01235584,82473.0,82472.0,0.08026159]
[1744251300731,0.0182827,82473.0,82472.0,0.08026159]
[1744251303151,0.0182827,82473.0,82472.0,0.06892297]
[1744251304236,0.2607857,82473.0,82472.0,0.06892297]
[1744251304438,0.2607857,82473.0,82472.0,0.06043211]
[1744251307278,0.0061577,82473.0,82472.0,0.06043211]
[1744251307481,0.0061577,82473.0,82472.0,0.03775382]
[1744251307826,0.2607857,82473.0,82472.0,0.03775382]
[1744251311044,0.25926443,82473.0,82472.0,0.03775382]
[1744251311878,0.22895523,82473.0,82472.0,0.03775382]
[1744251312612,0.23041991,82473.0,82472.0,0.03775382]
[1744251313677,0.24496076,82473.0,82472.0,0.03775382]
[1744251313947,0.26609983,82473.0,82472.0,0.03775382]
[1744251314441,0.25155898,82473.0,82472.0,0.03775382]
[1744251315248,0.25296116,82473.0,82472.0,0.03775382]
[1744251315598,0.23026547,82473.0,82472.0,0.03775382]
[1744251320976,0.22878422,82473.0,82472.0,0.03775382]
[1744251321416,0.23019508,82473.0,82472.0,0.03775382]
[1744251325176,0.22878279,82473.0,82472.0,0.03775382]
[1744251327706,0.25148587,82473.0,82472.0,0.03775382]
[1744251328306,0.60602672,82473.0,82472.0,0.03775382]
[1744251328513,0.60602672,82473.0,82452.0,1.35692898]
[1744251328514,0.25469,82453.0,82452.0,1.35692898]
[1744251328717,0.26033391,82453.0,82452.0,1.39468121]
[1744251328929,0.26033391,82453.0,82452.0,0.14644121]
[1744251330327,0.26033391,82453.0,82452.0,0.03775223]
[1744251330527,0.26233391,82453.0,82452.0,0.03775223]
[1744251332097,0.26433391,82453.0,82452.0,0.03775223]
[1744251333720,0.242595,82442.0,82440.0,0.03775223]
[1744251333920,0.00555728,82441.0,82439.0,0.0466376]
[1744251334070,0.012129,82443.0,82440.0,0.03770543]
[1744251334274,0.26028028,82442.0,82439.0,0.55211442]
[1744251334472,0.00555728,82442.0,82440.0,0.2803016]
[1744251334746,0.25472,82444.0,82441.0,0.0377026]
[1744251334953,0.00555117,82443.0,82442.0,0.0377026]
[1744251335732,0.00555117,82443.0,82442.0,0.2802966]
[1744251335934,0.242577,82448.0,82442.0,0.2802966]
[1744251335935,0.242571,82450.0,82447.0,0.242578]
[1744251336116,0.242579,82448.0,82444.0,0.242588]
[1744251336318,0.00552961,82447.0,82445.0,0.03770036]
[1744251336482,0.00552961,82447.0,82446.0,0.03770036]
[1744251336686,0.00552961,82447.0,82445.0,0.03770036]
[1744251336889,0.00552961,82447.0,82446.0,0.03770036]
[1744251337282,0.24810961,82447.0,82446.0,0.03770036]
[1744251337527,0.24810961,82447.0,82445.0,0.03770036]
[1744251337728,0.24810961,82447.0,82446.0,0.03770036]
[1744251337944,0.25010961,82447.0,82445.0,0.03770036]
[1744251338106,0.24810961,82447.0,82446.0,0.03770036]
[1744251338442,0.25110961,82447.0,82446.0,0.03770036]
[1744251338800,0.25410961,82447.0,82446.0,0.03770036]
[1744251342804,0.26623861,82447.0,82446.0,0.03770036]
[1744251347112,0.242547,82458.0,82455.0,0.242556]
[1744251347287,0.012127,82459.0,82453.0,0.012128]
[1744251347484,0.012127,82459.0,82454.0,0.03768275]
[1744251347646,0.24255,82457.0,82454.0,0.03768275]
[1744251347832,0.24255,82457.0,82455.0,0.03768275]
[1744251348033,0.24255,82457.0,82451.0,0.300093]
[1744251348034,0.242556,82455.0,82451.0,0.300093]
[1744251348259,0.012127,82455.0,82452.0,0.03768024]
[1744251348452,0.012127,82455.0,82453.0,0.03768024]
[1744251348686,0.012127,82455.0,82452.0,0.03768024]
[1744251348902,0.254686,82454.0,82453.0,0.03768024]
[1744251349104,0.242574,82450.0,82448.0,0.03768024]
[1744251349232,0.254702,82450.0,82449.0,0.03768936]
[1744251350853,0.258702,82450.0,82449.0,0.03768936]
[1744251351569,0.261702,82450.0,82449.0,0.03768936]
[1744251354709,0.26854146,82450.0,82449.0,0.03768936]
[1744251369119,0.01383946,82450.0,82449.0,0.03768936]
[1744251369322,0.01383946,82450.0,82449.0,0.29239136]
[1744251369579,0.007,82450.0,82449.0,0.33939136]
[1744251370157,0.01383225,82450.0,82449.0,0.33939136]
[1744251371749,0.007,82450.0,82449.0,0.33939136]
[1744251372194,0.01383225,82450.0,82449.0,0.33939136]
[1744251379082,0.01383225,82450.0,82449.0,0.45994518]
[1744251379292,0.004,82455.0,82454.0,0.254686]
[1744251379490,0.004,82455.0,82454.0,0.29237536]
[1744251379894,0.01092149,82455.0,82454.0,0.29237536]
[1744251380108,0.004,82455.0,82454.0,0.29237536]
[1744251380306,0.012127,82457.0,82454.0,0.03768936]
[1744251380522,0.24946733,82456.0,82455.0,0.03768936]
[1744251380935,0.00691233,82456.0,82455.0,0.03768936]
[1744251381096,0.24946533,82456.0,82455.0,0.03768936]
[1744251381865,0.25446533,82456.0,82455.0,0.03768936]
[1744251383204,0.01191233,82456.0,82455.0,0.40079918]
[1744251383324,0.005,82456.0,82455.0,0.45922618]
[1744251383543,0.005,82456.0,82455.0,0.50602618]
[1744251384942,0.005,82456.0,82455.0,0.50702618]
[1744251385102,0.242515,82469.0,82465.0,0.242525]
[1744251385274,0.242515,82469.0,82466.0,0.03768936]
[1744251385623,0.0045762,82468.0,82467.0,0.03768936]
[1744251387112,0.0045762,82468.0,82467.0,0.28021036]
[1744251387365,0.242514,82470.0,82467.0,0.28021036]
[1744251387650,0.25340634,82469.0,82468.0,0.03768936]
[1744251387799,0.24940634,82469.0,82468.0,0.03768936]
[1744251389081,0.25440634,82469.0,82468.0,0.03868936]
[1744251389703,0.01189134,82469.0,82468.0,0.03868936]
[1744251390309,0.01589134,82469.0,82468.0,0.28120736]
[1744251390535,0.01589134,82469.0,82468.0,0.03868936]
[1744251391727,0.25840634,82469.0,82468.0,0.03868936]
[1744251392031,0.01589134,82469.0,82468.0,0.03868936]
[1744251392654,0.25840634,82469.0,82468.0,0.03868936]
[1744251394170,0.01589134,82469.0,82468.0,0.03868936]
[1744251394378,0.25840634,82469.0,82468.0,0.03868936]
[1744251395314,0.01589134,82469.0,82468.0,0.03868936]
[1744251395703,0.25619659,82469.0,82468.0,0.03868936]
[1744251398627,0.25842976,82469.0,82468.0,0.03868936]
[1744251400682,0.01591476,82469.0,82468.0,0.03868936]
[1744251401044,0.25842976,82469.0,82468.0,0.03868936]
[1744251401441,0.01591476,82469.0,82468.0,0.03868936]
[1744251401646,0.25842976,82469.0,82468.0,0.03868936]
[1744251401852,0.28509561,82469.0,82468.0,0.001]
[1744251402369,0.40698561,82469.0,82468.0,0.001]
[1744251403434,0.40007085,82469.0,82468.0,0.001]
[1744251404115,0.254696,82451.0,82450.0,0.25092898]
[1744251404290,0.254696,82451.0,82450.0,0.28869847]
[1744251404495,0.26158736,82451.0,82450.0,0.28869847]
[1744251405022,0.254696,82451.0,82450.0,0.25099102]
[1744251405251,0.256696,82451.0,82450.0,0.25099102]
[1744251405465,0.258696,82451.0,82450.0,0.25099102]
[1744251407203,0.258696,82451.0,82450.0,0.14230204]
[1744251408019,0.27323685,82451.0,82450.0,6.204e-05]
[1744251408676,1.14419067,82451.0,82450.0,6.204e-05]
[1744251408879,1.44371555,82451.0,82450.0,4e-08]
[1744251409101,0.25473,82440.0,82439.0,0.0003376]
[1744251409260,1.31141467,82440.0,82439.0,0.00038023]
[1744251410517,1.32051663,82440.0,82439.0,0.00038023]
[1744251410677,1.32751663,82440.0,82439.0,0.00038023]
[1744251411286,1.25472663,82440.0,82439.0,0.00038023]
[1744251411487,1.38315922,82440.0,82439.0,0.00038023]
[1744251412329,0.60927385,82439.0,82438.0,8.3e-07]
[1744251412485,0.72982767,82439.0,82438.0,8.3e-07]
[1744251413385,1.12982767,82439.0,82438.0,8.3e-07]
[1744251414045,1.13682767,82439.0,82438.0,8.3e-07]
[1744251414190,1.14482767,82439.0,82438.0,8.3e-07]
[1744251414596,1.67966026,82439.0,82438.0,8.3e-07]
[1744251414802,0.60928285,82436.0,82435.0,4.3e-07]
[1744251415100,0.72983667,82436.0,82435.0,4.3e-07]
[1744251415738,1.30202667,82436.0,82435.0,4.3e-07]
[1744251415940,0.689266,82428.0,82427.0,3e-08]
[1744251416140,0.82436067,82428.0,82427.0,3e-08]
[1744251416521,1.23876067,82428.0,82427.0,3e-08]
[1744251417211,1.24776067,82428.0,82427.0,3e-08]
[1744251417406,1.36819326,82428.0,82427.0,3e-08]
[1744251418221,1.23876067,82428.0,82427.0,3e-08]
[1744251418460,1.24776067,82428.0,82427.0,3e-08]
[1744251419195,1.64776067,82428.0,82427.0,3e-08]
[1744251419375,1.60246067,82428.0,82427.0,3e-08]
[1744251419745,1.427166,82428.0,82427.0,3e-08]
[1744251419944,1.44170685,82428.0,82427.0,3e-08]
[1744251420264,1.04170685,82428.0,82427.0,3e-08]
[1744251423597,1.04170685,82428.0,82427.0,0.24263803]